bitfinex-derivatives/quotes_BTCF0:USTF0_20251215
["timestamp","ask_amount","ask_price","bid_price","bid_amount"]
[1765808664098,0.23126767,89470.0,89469.0,0.0688472]
[1765808669606,0.23126767,89470.0,89469.0,0.0111772]
[1765808669996,0.05809,89467.0,89466.0,0.7394776]
[1765808670206,0.0867183,89464.0,89463.0,0.0111779]
[1765808670408,0.2567183,89464.0,89463.0,0.0111779]
[1765808671192,0.2567183,89464.0,89463.0,0.0399979]
[1765808671603,0.2577183,89464.0,89463.0,0.0111779]
[1765808673406,0.24654,89464.0,89463.0,0.0121779]
[1765808675611,0.24654,89464.0,89463.0,0.0398879]
[1765808676703,0.24654,89464.0,89463.0,0.0121779]
[1765808677206,0.24654,89464.0,89463.0,0.0398879]
[1765808677613,0.24654,89464.0,89463.0,0.0686479]
[1765808680403,0.24654,89464.0,89463.0,0.0398879]
[1765808680598,0.24654,89464.0,89463.0,0.0121779]
[1765808680805,0.24654,89464.0,89463.0,0.001]
[1765808682814,0.0688295,89451.0,89450.0,0.0111795]
[1765808683010,0.22773584,89451.0,89450.0,0.0676495]
[1765808683914,0.22773584,89451.0,89450.0,0.0706495]
[1765808684310,0.22773584,89451.0,89450.0,0.05829875]
[1765808685012,0.22773584,89451.0,89450.0,0.01940925]
[1765808685710,0.22873584,89451.0,89450.0,0.01940925]
[1765808686015,0.22873584,89451.0,89450.0,0.07587925]
[1765808686216,0.22873584,89451.0,89450.0,0.07487925]
[1765808686904,0.22873584,89451.0,89450.0,0.01840925]
[1765808687511,0.23991534,89451.0,89450.0,0.01840925]
[1765808689313,0.23991534,89451.0,89450.0,0.04611925]
[1765808689915,0.23991534,89451.0,89450.0,0.07487925]
[1765808691618,0.23991534,89451.0,89450.0,0.04611925]
[1765808691818,0.23991534,89451.0,89450.0,0.01840925]
[1765808699315,0.23991534,89451.0,89450.0,0.02958885]
[1765808699513,0.23991534,89451.0,89450.0,0.08605885]
[1765808699822,0.22873584,89451.0,89450.0,0.08605885]
[1765808700214,0.22873584,89451.0,89450.0,0.07487925]
[1765808700415,0.22873584,89451.0,89449.0,0.0001129]
[1765808700416,0.0688296,89450.0,89449.0,2.9e-06]
[1765808700616,0.068832,89431.0,89430.0,0.02771]
[1765808700824,0.228832,89431.0,89430.0,0.02771]
[1765808701020,0.228832,89431.0,89430.0,0.01599888]
[1765808701208,0.05765,89426.0,89425.0,0.05]
[1765808701412,0.25765,89426.0,89425.0,0.05]
[1765808701613,0.25778209,89426.0,89425.0,0.10674]
[1765808701810,0.25778209,89426.0,89425.0,0.05]
[1765808702020,0.25778209,89426.0,89425.0,0.06619868]
[1765808703117,0.25778209,89426.0,89425.0,0.12465868]
[1765808703319,0.25778209,89426.0,89425.0,0.14248868]
[1765808703519,0.22846209,89426.0,89425.0,0.14248868]
[1765808703727,0.07013209,89426.0,89425.0,0.14248868]
[1765808704026,0.07713209,89426.0,89425.0,0.56912868]
[1765808704516,0.00016767,89439.0,89438.0,0.0696411]
[1765808704717,0.20016767,89439.0,89438.0,0.0696411]
[1765808705512,0.20027259,89439.0,89438.0,0.0696411]
[1765808707122,0.02771,89430.0,89429.0,0.0111821]
[1765808707314,0.05514,89428.0,89427.0,0.08901122]
[1765808707517,0.23514,89428.0,89427.0,0.08901122]
[1765808707719,0.05514,89426.0,89425.0,0.06619868]
[1765808707915,0.23514,89426.0,89425.0,0.06619868]
[1765808708130,0.23514,89426.0,89425.0,0.09562868]
[1765808708728,0.23514,89426.0,89425.0,0.12465868]
[1765808709631,0.23614,89426.0,89425.0,0.12465868]
[1765808710620,0.23814,89426.0,89425.0,0.12565868]
[1765808712529,0.003,89426.0,89425.0,0.12565868]
[1765808713436,0.05814,89426.0,89425.0,0.12565868]
[1765808713625,0.003,89426.0,89425.0,0.12565868]
[1765808714024,0.003,89426.0,89425.0,0.20566799]
[1765808714528,0.03043,89426.0,89425.0,0.20566799]
[1765808714732,0.05814,89426.0,89425.0,0.20566799]
[1765808714924,0.003,89426.0,89425.0,0.20566799]
[1765808716024,0.003,89426.0,89425.0,0.12565868]
[1765808717721,0.00027259,89439.0,89438.0,0.0696411]
[1765808717920,0.05514,89460.0,89459.0,0.0696385]
[1765808718219,0.23514,89460.0,89459.0,0.0696385]
[1765808720138,0.23814,89460.0,89459.0,0.0706385]
[1765808720638,0.23514,89460.0,89459.0,0.0696385]
[1765808720835,0.23514,89460.0,89459.0,0.0706385]
[1765808720836,0.23814,89460.0,89459.0,0.0706385]
[1765808721236,0.185,89460.0,89459.0,0.0706385]
[1765808721430,0.182,89460.0,89459.0,0.0696385]
[1765808721631,0.184,89460.0,89459.0,0.0706385]
[1765808721936,0.21143,89460.0,89459.0,0.0706385]
[1765808722138,0.20943,89460.0,89459.0,0.0706385]
[1765808722337,0.21243,89460.0,89459.0,0.0706385]
[1765808722542,0.005,89460.0,89459.0,0.0706385]
[1765808722839,0.00016767,89468.0,89467.0,0.0696375]
[1765808723022,0.19016767,89468.0,89467.0,0.0696375]
[1765808723629,0.18992771,89468.0,89467.0,0.0696375]
[1765808724037,0.21735771,89468.0,89467.0,0.0696375]
[1765808724235,0.24506771,89468.0,89467.0,0.0696375]
[1765808724434,0.24606771,89468.0,89467.0,0.0696375]
[1765808724629,0.19092771,89468.0,89467.0,0.0696375]
[1765808724833,0.011,89468.0,89467.0,0.0696375]
[1765808725228,0.06614,89468.0,89467.0,0.0696375]
[1765808725622,0.06814,89468.0,89467.0,0.0696375]
[1765808725926,0.05514,89455.0,89454.0,0.08019419]
[1765808726230,0.05514,89452.0,89451.0,0.02959767]
[1765808726435,0.05514,89452.0,89451.0,0.05862767]
[1765808727031,0.0663182,89462.0,89461.0,0.05846]
[1765808727231,0.2663182,89462.0,89461.0,0.05846]
[1765808727731,0.25514,89462.0,89461.0,0.05846]
[1765808728538,0.05514,89452.0,89451.0,0.00216767]
[1765808728730,0.2163194,89452.0,89451.0,0.00216767]
[1765808729824,0.2163194,89452.0,89451.0,0.00016767]
[1765808730435,0.2173194,89452.0,89451.0,0.00016767]
[1765808730930,0.2173194,89452.0,89451.0,0.05862767]
[1765808731330,0.2173194,89452.0,89451.0,0.00016767]
[1765808731735,0.2183194,89452.0,89451.0,0.00016767]
[1765808731927,0.2183194,89452.0,89451.0,0.05633767]
[1765808732343,0.20714,89452.0,89451.0,0.07265767]
[1765808733144,0.05714,89452.0,89451.0,0.07265767]
[1765808733341,0.25714,89452.0,89451.0,0.07265767]
[1765808734145,0.25714,89452.0,89451.0,0.00016767]
[1765808734328,0.25614,89452.0,89451.0,0.00016767]
[1765808734738,0.25514,89452.0,89451.0,0.01134717]
[1765808734946,0.25614,89452.0,89451.0,0.01134717]
[1765808735242,0.25714,89452.0,89451.0,0.00016767]
[1765808735744,0.25614,89452.0,89451.0,0.00016767]
[1765808735937,0.25714,89452.0,89451.0,0.00016767]
[1765808743446,0.25714,89452.0,89440.0,0.16702406]
[1765808743447,0.0693807,89441.0,89440.0,0.05671]
[1765808743749,0.0582,89440.0,89439.0,0.0111809]
[1765808743950,0.0582,89440.0,89439.0,0.0406409]
[1765808744135,0.0582,89440.0,89439.0,0.0678909]
[1765808744540,0.1782,89440.0,89439.0,0.0678909]
[1765808744946,0.1782,89440.0,89439.0,0.03146]
[1765808745142,0.1782,89440.0,89439.0,0.002]
[1765808745744,0.1782,89440.0,89439.0,0.003]
[1765808747550,0.19472,89440.0,89439.0,0.003]
[1765808747754,0.1782,89440.0,89439.0,0.003]
[1765808748460,0.1782,89440.0,89425.0,0.05]
[1765808748461,0.0582,89426.0,89425.0,0.05]
[1765808748664,0.2282,89426.0,89425.0,0.06668861]
[1765808749160,0.2282,89426.0,89425.0,0.05]
[1765808749454,0.0135135,89419.0,89418.0,0.0022367]
[1765808749752,0.00018,89400.0,89399.0,0.011186]
[1765808750058,0.00018,89400.0,89399.0,0.084803]
[1765808751760,0.00118,89400.0,89399.0,0.088803]
[1765808752550,0.00118,89400.0,89399.0,0.091803]
[1765808757556,0.01118,89400.0,89399.0,0.091803]
[1765808760261,0.19118,89400.0,89399.0,0.080617]
[1765808761456,0.19118,89400.0,89399.0,0.053367]
[1765808762055,0.19118,89400.0,89399.0,0.023907]
[1765808762251,0.19118,89400.0,89399.0,0.080437]
[1765808767368,0.19118,89400.0,89399.0,0.023907]
[1765808767560,0.19118,89400.0,89399.0,0.080437]
[1765808770660,0.19118,89400.0,89399.0,0.023907]
[1765808772570,0.19118,89400.0,89399.0,0.022907]
[1765808774073,0.19118,89400.0,89399.0,0.006]
[1765808774479,0.19118,89400.0,89392.0,0.00796998]
[1765808774480,0.00018,89393.0,89392.0,0.00796998]
[1765808774675,0.19018,89393.0,89392.0,0.00796998]
[1765808775469,0.19029033,89393.0,89392.0,0.00796998]
[1765808775874,0.19029033,89393.0,89364.0,0.01797]
[1765808775875,0.00018,89379.0,89364.0,0.01797]
[1765808776067,0.1913685,89379.0,89364.0,0.01797]
[1765808776266,0.1913685,89379.0,89369.0,0.01797]
[1765808777478,0.21716444,89379.0,89369.0,0.01797]
[1765808778176,0.21716444,89379.0,89362.0,0.01797]
[1765808778772,0.21816444,89379.0,89378.0,0.0032377]
[1765808779373,0.21916444,89379.0,89378.0,0.0032377]
[1765808779577,0.21816444,89379.0,89378.0,0.0022377]
[1765808779873,0.22516444,89379.0,89378.0,0.0032377]
[1765808780271,0.22516444,89379.0,89378.0,0.0042377]
[1765808780272,0.23216444,89379.0,89378.0,0.0042377]
[1765808781270,0.2043685,89379.0,89378.0,0.0042377]
[1765808781674,0.2042785,89379.0,89378.0,0.0607677]
[1765808781982,0.19318,89379.0,89378.0,0.0607677]
[1765808782178,0.006,89379.0,89378.0,0.0709563]
[1765808782477,0.092,89379.0,89378.0,0.0709563]
[1765808782874,0.202,89379.0,89378.0,0.0709563]
[1765808783075,0.136,89379.0,89378.0,0.0587677]
[1765808783270,0.141,89379.0,89378.0,0.0597677]
[1765808784076,0.136,89379.0,89378.0,0.0587677]
[1765808784379,0.139,89379.0,89378.0,0.0587677]
[1765808784684,0.13909,89379.0,89378.0,0.0587677]
[1765808784980,0.139,89379.0,89378.0,0.0587677]
[1765808785183,0.00016777,89387.0,89386.0,0.05653]
[1765808785482,0.00016777,89387.0,89386.0,0.0677176]
[1765808785675,0.00011033,89393.0,89392.0,0.0856869]
[1765808785981,0.01011033,89393.0,89392.0,0.0856869]
[1765808787276,0.01311033,89393.0,89392.0,0.0866869]
[1765808787585,0.01511033,89393.0,89392.0,0.0866869]
[1765808788979,0.07395033,89393.0,89392.0,0.0866869]
[1765808789887,0.07395033,89393.0,89392.0,0.0755]
[1765808790084,0.06395033,89393.0,89392.0,0.0755]
[1765808790381,0.22395033,89393.0,89392.0,0.001]
[1765808790572,0.23513703,89393.0,89392.0,0.001]
[1765808795186,0.23513703,89393.0,89392.0,0.05961]
[1765808795376,0.23513703,89393.0,89392.0,0.001]
[1765808796284,0.23513703,89393.0,89392.0,0.07627]
[1765808796686,0.23513703,89393.0,89392.0,0.001]
[1765808797593,0.23513703,89393.0,89392.0,0.07627]
[1765808798590,0.23513703,89393.0,89392.0,0.03001]
[1765808798790,0.23513703,89393.0,89392.0,0.001]
[1765808799988,0.23513703,89393.0,89392.0,0.05961]
[1765808800394,0.23513703,89393.0,89392.0,0.07627]
[1765808800594,0.22395033,89393.0,89392.0,0.07627]
[1765808802588,0.16511033,89393.0,89392.0,0.07627]
[1765808803096,0.19443033,89393.0,89392.0,0.07627]
[1765808803298,0.22298033,89393.0,89392.0,0.07627]
[1765808805397,0.16511033,89393.0,89392.0,0.07627]
[1765808805796,0.19443033,89393.0,89392.0,0.07627]
[1765808805987,0.22298033,89393.0,89392.0,0.07627]
[1765808806400,0.19443033,89393.0,89392.0,0.07627]
[1765808806898,0.16511033,89393.0,89392.0,0.07627]
[1765808807097,0.04511033,89393.0,89392.0,0.07627]
[1765808807298,0.00016777,89401.0,89400.0,0.05861]
[1765808807603,0.00016777,89401.0,89400.0,0.0697959]
[1765808807801,0.0690539,89416.0,89415.0,0.069794]
[1765808807999,0.2590539,89416.0,89415.0,0.069794]
[1765808809293,0.24787,89416.0,89415.0,0.069794]
[1765808809499,0.19,89416.0,89415.0,0.069794]
[1765808809897,0.21932,89416.0,89415.0,0.069794]
[1765808810102,0.24787,89416.0,89415.0,0.069794]
[1765808810604,0.25187,89416.0,89415.0,0.070794]
[1765808811302,0.24887,89416.0,89415.0,0.070794]
[1765808811501,0.24887,89416.0,89415.0,0.05961]
[1765808812401,0.24887,89416.0,89415.0,0.070794]
[1765808812608,0.22032,89416.0,89415.0,0.070794]
[1765808813000,0.191,89416.0,89415.0,0.070794]
[1765808813297,0.22032,89416.0,89415.0,0.070794]
[1765808813599,0.24887,89416.0,89415.0,0.070794]
[1765808815506,0.191,89416.0,89415.0,0.070794]
[1765808816298,0.001,89416.0,89415.0,0.070794]
[1765808816499,0.081,89416.0,89415.0,0.070794]
[1765808816801,0.03769271,89416.0,89415.0,0.070794]
[1765808818309,0.09556271,89416.0,89415.0,0.070794]
[1765808819999,0.05787,89416.0,89415.0,0.012184]
[1765808820309,0.21787,89416.0,89415.0,0.041194]
[1765808820505,0.21787,89416.0,89415.0,0.070794]
[1765808820902,0.05803777,89424.0,89423.0,0.069793]
[1765808821100,0.23803777,89424.0,89423.0,0.069793]
[1765808821299,0.18016777,89424.0,89423.0,0.069793]
[1765808822195,0.18116777,89424.0,89423.0,0.069793]
[1765808823402,0.18416777,89424.0,89423.0,0.069793]
[1765808825114,0.06416777,89424.0,89423.0,0.069793]
[1765808826506,0.00416777,89424.0,89423.0,0.069793]
[1765808826901,0.00135,89445.0,89441.0,0.0675607]
[1765808826902,0.06710063,89442.0,89441.0,0.0675607]
[1765808827220,0.067341,89439.0,89438.0,0.0405411]
[1765808827406,0.257341,89439.0,89438.0,0.0405411]
[1765808827607,0.257341,89439.0,89438.0,1.5405411]
[1765808828106,0.257341,89439.0,89438.0,1.55848415]
[1765808828416,0.25016,89439.0,89438.0,1.55948415]
[1765808828613,0.25016,89439.0,89438.0,1.51894305]
[1765808828913,0.25016,89439.0,89438.0,0.01894305]
[1765808830009,0.25516,89439.0,89438.0,0.01894305]
[1765808834212,0.25516,89439.0,89438.0,3.05e-06]
[1765808834417,0.067342,89431.0,89430.0,0.00016777]
[1765808834617,0.247342,89431.0,89430.0,0.00016777]
[1765808835018,0.247342,89431.0,89430.0,0.01772736]
[1765808835219,0.247342,89431.0,89430.0,0.00016777]
[1765808835609,0.249342,89431.0,89430.0,0.00016777]
[1765808836620,0.253342,89431.0,89430.0,0.01739226]
[1765808841628,0.253342,89431.0,89430.0,0.00016777]
[1765808841932,0.253342,89431.0,89420.0,0.50356]
[1765808841933,0.0673432,89421.0,89420.0,0.50356]
[1765808842225,0.2673432,89421.0,89420.0,0.0172494]
[1765808842431,0.0673452,89405.0,89404.0,0.7677653]
[1765808842632,0.2473452,89405.0,89404.0,2.25658]
[1765808843928,0.2473452,89405.0,89404.0,2.27271622]
[1765808844124,0.2473452,89405.0,89404.0,2.27571622]
[1765808844314,0.2473452,89405.0,89404.0,2.27671622]
[1765808845532,0.2473452,89405.0,89404.0,2.29364622]
[1765808845533,0.2373452,89405.0,89404.0,2.29364622]
[1765808846118,0.17,89405.0,89404.0,2.29364622]
[1765808847720,0.19792,89405.0,89404.0,2.29364622]
[1765808847920,0.22616,89405.0,89404.0,2.29364622]
[1765808848521,0.17,89405.0,89404.0,2.29364622]
[1765808848923,0.09792,89405.0,89404.0,2.29364622]
[1765808849334,0.07,89405.0,89404.0,2.29364622]
[1765808850424,0.00016777,89413.0,89412.0,0.0692944]
[1765808850628,0.23898777,89413.0,89412.0,0.7695344]
[1765808851825,0.23898777,89413.0,89412.0,0.7705344]
[1765808852629,0.20913777,89413.0,89412.0,0.7705344]
[1765808853640,0.18016777,89413.0,89412.0,0.7705344]
[1765808855542,0.23651777,89413.0,89412.0,0.7705344]
[1765808857029,0.24770197,89413.0,89412.0,0.7705344]
[1765808857526,0.24770197,89413.0,89412.0,0.0702944]
[1765808857832,0.24770197,89413.0,89412.0,0.7704144]
[1765808858026,0.24770197,89413.0,89412.0,0.0702944]
[1765808858341,0.24770197,89413.0,89412.0,0.7704144]
[1765808858530,0.24770197,89413.0,89412.0,0.75923]
[1765808860336,0.24770197,89413.0,89412.0,0.001]
[1765808862343,0.24770197,89413.0,89412.0,0.0680144]
[1765808863328,0.24770197,89413.0,89412.0,0.05683]
[1765808863540,0.24770197,89413.0,89412.0,0.001]
[1765808865333,0.24770197,89413.0,89412.0,0.05683]
[1765808865733,0.21871197,89413.0,89412.0,0.05683]
[1765808866046,0.24770197,89413.0,89412.0,0.05683]
[1765808867246,0.23651777,89413.0,89412.0,0.05683]
[1765808868044,0.20752777,89413.0,89412.0,0.05683]
[1765808868245,0.23651777,89413.0,89412.0,0.05683]
[1765808868446,0.20752777,89413.0,89412.0,0.05683]
[1765808868647,0.23651777,89413.0,89412.0,0.05683]
[1765808869936,0.20752777,89413.0,89412.0,0.05683]
[1765808870249,0.15770228,89413.0,89412.0,0.05683]
[1765808870440,0.21405228,89413.0,89412.0,0.05683]
[1765808871144,0.21405228,89413.0,89412.0,0.13702419]
[1765808872335,0.22523648,89413.0,89412.0,0.001]
[1765808872640,0.22523648,89413.0,89412.0,0.701]
[1765808872944,0.22523648,89413.0,89412.0,0.7297]
[1765808873246,0.22523648,89413.0,89412.0,0.701]
[1765808877353,0.22523648,89413.0,89412.0,0.7297]
[1765808877549,0.22523648,89413.0,89412.0,0.001]
[1765808879943,0.22523648,89413.0,89412.0,0.05683]
[1765808880362,0.15770228,89413.0,89412.0,0.77245]
[1765808880661,0.00016777,89421.0,89420.0,0.0670134]
[1765808880851,0.16016777,89421.0,89420.0,0.0670134]
[1765808881961,0.16216777,89421.0,89420.0,0.0670134]
[1765808882150,0.16316777,89421.0,89420.0,0.0670134]
[1765808882648,0.00316777,89421.0,89420.0,0.0670134]
[1765808883447,0.001,89421.0,89420.0,0.16620511]
[1765808883650,0.067481,89439.0,89438.0,0.05581]
[1765808883846,0.247481,89439.0,89438.0,0.05581]
[1765808884048,0.2363,89439.0,89438.0,0.05581]
[1765808885062,0.21236,89439.0,89438.0,0.05581]
[1765808885257,0.185,89439.0,89438.0,0.14363875]
[1765808885567,0.019,89439.0,89438.0,0.05681]
[1765808886157,0.04856,89439.0,89438.0,0.05681]
[1765808886750,0.019,89439.0,89438.0,0.05681]
[1765808886946,0.01882004,89439.0,89438.0,0.05681]
[1765808887560,0.01882004,89439.0,89438.0,0.13712718]
[1765808887761,0.05000004,89439.0,89438.0,0.22500944]
[1765808887955,0.05000004,89439.0,89438.0,0.14469226]
[1765808890067,0.05000004,89439.0,89438.0,0.84509226]
[1765808890964,0.10850004,89439.0,89438.0,0.14469226]
[1765808891159,0.10850004,89439.0,89438.0,0.84505226]
[1765808891551,0.07956004,89439.0,89438.0,0.84905226]
[1765808892156,0.05000004,89439.0,89438.0,0.84905226]
[1765808892353,0.05000004,89439.0,89438.0,0.84805226]
[1765808892557,0.051,89439.0,89438.0,0.85205226]
[1765808892769,0.08056,89439.0,89438.0,0.85205226]
[1765808893078,0.051,89439.0,89438.0,0.85205226]
[1765808893266,0.1085,89439.0,89438.0,0.84601226]
[1765808893465,0.1085,89439.0,89438.0,0.85001226]
[1765808893773,0.05,89439.0,89438.0,0.85001226]
[1765808894067,0.05,89439.0,89438.0,0.85101226]
[1765808894568,0.05,89439.0,89438.0,0.15069226]
[1765808894769,0.05,89439.0,89438.0,0.85097226]
[1765808895161,0.05,89439.0,89438.0,0.84897226]
[1765808895362,0.05,89439.0,89438.0,0.85197226]
[1765808895862,0.1085,89439.0,89438.0,0.85197226]
[1765808896364,0.05,89439.0,89438.0,0.85097226]
[1765808896970,0.05,89439.0,89438.0,0.84697226]
[1765808897163,0.05,89439.0,89438.0,0.84897226]
[1765808899069,0.05,89439.0,89438.0,0.84597226]
[1765808899260,0.05,89439.0,89438.0,0.84997226]
[1765808899862,0.07956,89439.0,89438.0,0.84597226]
[1765808900169,0.07956,89439.0,89438.0,0.85097226]
[1765808900369,0.05,89439.0,89438.0,0.85097226]
[1765808900563,0.05,89439.0,89438.0,0.84697226]
[1765808900867,0.07956,89439.0,89438.0,0.85197226]
[1765808901069,0.1085,89439.0,89438.0,0.85197226]
[1765808902170,0.1085,89439.0,89438.0,0.84897226]
[1765808902374,0.05,89439.0,89438.0,0.85097226]
[1765808902569,0.07956,89439.0,89438.0,0.85097226]
[1765808902866,0.05,89439.0,89438.0,0.84997226]
[1765808903270,0.05,89439.0,89438.0,0.84797226]
[1765808903470,0.05,89439.0,89438.0,0.85097226]
[1765808904171,0.05,89439.0,89438.0,0.84797226]
[1765808904471,0.2495,89439.0,89438.0,0.85197226]
[1765808906867,0.2485,89439.0,89438.0,0.85197226]
[1765808907175,0.2485,89439.0,89438.0,0.85097226]
[1765808907560,0.2485,89439.0,89438.0,0.84597226]
[1765808907770,0.21956,89439.0,89438.0,0.84897226]
[1765808907978,0.19,89439.0,89438.0,0.84897226]
[1765808909067,0.19,89439.0,89438.0,0.92913053]
[1765808909672,0.19,89439.0,89438.0,0.84897226]
[1765808910074,0.19,89439.0,89438.0,0.92929534]
[1765808910278,0.19,89439.0,89438.0,0.84897226]
[1765808910474,0.19,89439.0,89438.0,0.84597226]
[1765808910775,0.19,89439.0,89438.0,0.84997226]
[1765808910980,0.21728,89439.0,89438.0,0.84797226]
[1765808911161,0.24724,89439.0,89438.0,0.84697226]
[1765808911370,0.19,89439.0,89438.0,0.85097226]
[1765808914581,0.21891,89439.0,89438.0,0.85097226]
[1765808914781,0.21891,89439.0,89438.0,0.84697226]
[1765808914977,0.21891,89439.0,89438.0,0.85097226]
[1765808915685,0.19,89439.0,89438.0,0.85097226]
[1765808916179,0.19,89439.0,89438.0,0.84997226]
[1765808916688,0.19,89439.0,89438.0,0.84597226]
[1765808916874,0.19,89439.0,89438.0,0.84997226]
[1765808917275,0.19,89439.0,89438.0,0.84797226]
[1765808917477,0.19,89439.0,89438.0,0.84697226]
[1765808917676,0.19,89439.0,89438.0,0.85097226]
[1765808918283,0.19,89439.0,89438.0,0.84697226]
[1765808918482,0.19,89439.0,89438.0,0.85097226]
[1765808920683,0.19,89439.0,89438.0,0.84797226]
[1765808920883,0.19,89439.0,89438.0,0.85097226]
[1765808924296,0.00135,89445.0,89444.0,0.05837]
[1765808924493,0.18135,89445.0,89444.0,0.05837]
[1765808924692,0.18135,89445.0,89444.0,0.0695504]
[1765808925094,0.01135,89445.0,89444.0,0.0695504]
[1765808925294,0.00135,89445.0,89444.0,0.17012983]
[1765808925492,0.0111776,89467.0,89457.0,0.0695487]
[1765808925695,0.2311457,89458.0,89457.0,0.7691487]
[1765808925891,0.2022357,89458.0,89457.0,0.7691487]
[1765808926194,0.2311457,89458.0,89457.0,0.7691487]
[1765808926602,0.2022357,89458.0,89457.0,0.7691487]
[1765808926800,0.2311457,89458.0,89457.0,0.7691487]
[1765808927091,0.2702043,89458.0,89457.0,0.7691487]
[1765808927296,0.2702043,89458.0,89457.0,0.84954685]
[1765808927616,0.2702043,89458.0,89457.0,0.7691487]
[1765808927904,0.2702043,89458.0,89457.0,0.85054685]
[1765808928100,0.2702043,89458.0,89457.0,0.7701487]
[1765808928304,0.2702043,89458.0,89457.0,0.7711487]
[1765808928501,0.2702043,89458.0,89457.0,0.7701487]
[1765808928695,0.2702043,89458.0,89457.0,0.7721487]
[1765808930310,0.2702043,89458.0,89457.0,0.76097]
[1765808933406,0.2134143,89458.0,89457.0,0.76097]
[1765808933609,0.1622357,89458.0,89457.0,0.76097]
[1765808934312,0.2190257,89458.0,89457.0,0.76097]
[1765808939312,0.1911457,89458.0,89457.0,0.76097]
[1765808939512,0.2190257,89458.0,89457.0,0.76097]
[1765808946501,0.2190257,89458.0,89457.0,0.003]
[1765808948524,0.2190257,89458.0,89457.0,0.002]
[1765808948707,0.2200257,89458.0,89457.0,0.002]
[1765808948911,0.2200257,89458.0,89457.0,0.03112]
[1765808949216,0.05756,89450.0,89449.0,0.05867777]
[1765808949417,0.25756,89450.0,89449.0,0.05867777]
[1765808950118,0.25756,89450.0,89449.0,0.06985747]
[1765808950321,0.2,89450.0,89449.0,0.06985747]
[1765808950909,0.22951,89450.0,89449.0,0.06985747]
[1765808951110,0.25756,89450.0,89449.0,0.06985747]
[1765808951510,0.25756,89450.0,89449.0,0.07085747]
[1765808952116,0.25756,89450.0,89449.0,0.15425562]
[1765808952610,0.25756,89450.0,89449.0,0.15125562]
[1765808952920,0.25756,89450.0,89449.0,0.15425562]
[1765808953514,0.25756,89450.0,89449.0,0.15325562]
[1765808953719,0.25756,89450.0,89449.0,0.15525562]
[1765808954219,0.25756,89450.0,89449.0,0.07485747]
[1765808954620,0.25756,89450.0,89449.0,0.15425716]
[1765808955517,0.25756,89450.0,89449.0,0.15325716]
[1765808955710,0.25756,89450.0,89449.0,0.15425716]
[1765808956121,0.27395,89450.0,89449.0,0.14307746]
[1765808956714,0.25756,89450.0,89449.0,0.14007746]
[1765808956910,0.25756,89450.0,89449.0,0.14307746]
[1765808957411,0.25756,89450.0,89449.0,0.14007746]
[1765808957719,0.25756,89450.0,89449.0,0.14207746]
[1765808958422,0.25756,89450.0,89449.0,0.14107746]
[1765808958623,0.25756,89450.0,89449.0,0.14207746]
[1765808959416,0.25756,89450.0,89449.0,0.14307746]
[1765808959714,0.27427,89450.0,89449.0,0.14307746]
[1765808960120,0.27427,89450.0,89449.0,0.06267777]
[1765808960624,0.27427,89450.0,89449.0,0.05867777]
[1765808960926,0.27427,89450.0,89449.0,0.06267777]
[1765808961222,0.27427,89450.0,89449.0,0.07385747]
[1765808961609,0.27427,89450.0,89449.0,0.07285747]
[1765808962221,0.25756,89450.0,89449.0,0.15325716]
[1765808962729,0.25756,89450.0,89449.0,0.15225716]
[1765808963627,0.25756,89450.0,89449.0,0.15325716]
[1765808963933,0.27427,89450.0,89449.0,0.06167777]
[1765808964227,0.27427,89450.0,89449.0,0.00316777]
[1765808964628,0.27427,89450.0,89449.0,0.00416777]
[1765808965628,0.27527,89450.0,89449.0,0.00316777]
[1765808966026,0.27503003,89450.0,89449.0,0.00316777]
[1765808966326,0.27503003,89450.0,89449.0,0.00216777]
[1765808967124,0.27503003,89450.0,89449.0,0.00116777]
[1765808967729,0.27503003,89450.0,89449.0,0.00016777]
[1765808967918,0.27503003,89450.0,89449.0,0.00116777]
[1765808968726,0.27403003,89450.0,89449.0,0.00116777]
[1765808969828,0.27503003,89450.0,89449.0,0.00116777]
[1765808971527,0.27503003,89450.0,89449.0,0.05655777]
[1765808971927,0.27403003,89450.0,89449.0,0.05655777]
[1765808972826,0.27403003,89450.0,89449.0,0.02838777]
[1765808973431,0.27403003,89450.0,89449.0,0.00116777]
[1765808974427,0.05492,89436.0,89435.0,0.10849969]
[1765808974724,0.23492,89436.0,89435.0,0.11968119]
[1765808975131,0.23492,89436.0,89435.0,0.14953119]
[1765808975330,0.23492,89436.0,89435.0,0.0691315]
[1765808976523,0.23492,89436.0,89435.0,0.0281]
[1765808976729,0.23492,89436.0,89435.0,0.09114964]
[1765808977033,0.0825415,89435.0,89434.0,0.75747]
[1765808977222,0.2625415,89435.0,89434.0,0.75747]
[1765808978734,0.2625415,89435.0,89425.0,0.14999442]
[1765808978735,0.0247837,89417.0,89416.0,0.00013494]
[1765808978925,0.0247852,89405.0,89404.0,0.05795]
[1765808979126,0.1868,89405.0,89404.0,0.05795]
[1765808979341,0.18,89405.0,89404.0,0.05795]
[1765808979536,0.1936,89405.0,89404.0,0.07375674]
[1765808980037,0.19373494,89405.0,89404.0,0.07375674]
[1765808980232,0.19373494,89405.0,89404.0,0.07575674]
[1765808981423,0.19373494,89405.0,89404.0,0.07875674]
[1765808984836,0.00016777,89413.0,89412.0,0.0392844]
[1765808985039,0.01388,89429.0,89428.0,0.05795]
[1765808985332,0.18388,89429.0,89428.0,0.75775]
[1765808985725,0.17694,89429.0,89428.0,0.75775]
[1765808987528,0.17894,89429.0,89428.0,0.75775]
[1765808987738,0.18588,89429.0,89428.0,0.75775]
[1765808988528,0.18588,89429.0,89428.0,0.7018]
[1765808988726,0.18588,89429.0,89428.0,0.002]
[1765808989836,0.18388,89429.0,89428.0,0.002]
[1765808990140,0.18388,89429.0,89428.0,0.003]
[1765808990639,0.18388,89429.0,89428.0,0.002]
[1765808990843,0.0250632,89421.0,89420.0,0.00016777]
[1765808991039,0.2150632,89421.0,89420.0,0.00016777]
[1765808992136,0.20388,89421.0,89420.0,0.06930117]
[1765808992338,0.20388,89421.0,89420.0,0.00016777]
[1765808992530,0.20488,89421.0,89420.0,0.00016777]
[1765808993546,0.20588,89421.0,89420.0,0.00016777]
[1765808994438,0.20488,89421.0,89420.0,0.00016777]